[Event "IITU Masters 2019"]
[Site "Almaty"]
[Date "2019.02.22"]
[Round "3.2"]
[White "Askarov, Bakhtiyar"]
[Black "Daurimbetov, A."]
[Result "1-0"]
[ECO "A11"]
[WhiteElo "2425"]
[BlackElo "2287"]
[Annotator "NA"]
[PlyCount "109"]
[EventDate "2019.02.20"]
[EventType "tourn"]
[EventCountry "KAZ"]
[SourceTitle "playchess.com"]
[Source "ChessBase"]
[SourceQuality "1"]
[TimeControl "5400+30"]

1. c4 {[%emt 0:00:00]} c6 {[%emt 0:00:16]} 2. Nf3 {[%emt 0:06:19]} Nf6 {[%emt 0:00:52]} 3. Nc3 {[%emt 0:01:48]} d5 {[%emt 0:00:19]} 4. e3 {[%emt 0:03:44]} a6 {[%emt 0:00:28]} 5. Qb3 {[%emt 0:08:52]} e6 {[%emt 0:23:26]} 6. d4 {[%emt 0:07:51]} b5 {[%emt 0:02:21]} 7. c5 {[%emt 0:00:10]} Nbd7 {[%emt 0:00:58]} 8. a4 {[%emt 0:01:31]} Rb8 {[%emt 0:01:09]} 9. axb5 {[%emt 0:01:16]} axb5 {[%emt 0:00:16]} 10. Be2 {[%emt 0:01:19]} Be7 {[%emt 0:04:10]} 11. O-O {[%emt 0:00:14]} O-O {[%emt 0:00:02]} 12. Bd2 {[%emt 0:01:58]} Ne4 {[%emt 0:01:45]} 13. Nxe4 {[%emt 0:01:28]} dxe4 {[%emt 0:00:07]} 14. Ba5 {[%emt 0:00:05]} Qe8 {[%emt 0:02:57]} 15. Nd2 {[%emt 0:00:31]} e5 {[%emt 0:01:01]} 16. Nxe4 {[%emt 0:02:56]} exd4 {[%emt 0:00:37]} 17. exd4 {[%emt 0:00:07]} Bxc5 {[%emt 0:01:44]} 18. Bf3 {[%emt 0:02:12]} Bxd4 {[%emt 0:03:29]} 19. Bc7 {[%emt 0:00:06]} Bb7 {[%emt 0:08:05]} 20. Nd6 {[%emt 0:00:49]} Qe7 {[%emt 0:02:23]} 21. Rae1 {[%emt 0:04:15]} Ne5 {[%emt 0:02:43]} 22. Bxb8 {[%emt 0:00:41]} Rxb8 {[%emt 0:00:33]} 23. Nf5 {[%emt 0:00:41]} Qd7 {[%emt 0:02:08]} 24. Nxd4 {[%emt 0:00:44]} Qxd4 {[%emt 0:00:07]} 25. Re4 {[%emt 0:02:23]} Qd5 {[%emt 0:09:49]} 26. Qxd5 {[%emt 0:04:22]} Nxf3+ {[%emt 0:00:03]} 27. gxf3 {[%emt 0:00:10]} cxd5 {[%emt 0:00:01]} 28. Rb4 {[%emt 0:01:31]} Bc6 {[%emt 0:00:52]} 29. Ra1 {[%emt 0:07:22]} h6 {[%emt 0:02:36]} 30. Ra7 {[%emt 0:01:50]} d4 {[%emt 0:04:09]} 31. Ra3 {[%emt 0:00:38]} Rd8 {[%emt 0:04:38]} 32. Rd3 {[%emt 0:00:22]} Bxf3 {[%emt 0:00:52]} 33. Rbxd4 {[%emt 0:00:39]} Rxd4 {[%emt 0:01:44]} 34. Rxd4 {[%emt 0:00:06]} Kf8 {[%emt 0:01:01]} 35. Rd7 {[%emt 0:02:29]} g5 {[%emt 0:03:11]} 36. b4 {[%emt 0:02:21]} Kg7 {[%emt 0:01:36]} 37. Rd6 {[%emt 0:01:03]} h5 {[%emt 0:01:43]} 38. h4 {[%emt 0:03:17]} f6 {[%emt 0:02:27]} 39. Kh2 {[%emt 0:01:07]} gxh4 {[%emt 0:00:55]} 40. Rb6 {[%emt 0:02:47]} Be2 {[%emt 0:00:13]} 41. Rc6 {[%emt 0:01:36]} Kg6 {[%emt 0:00:33]} 42. Rc5 {[%emt 0:00:19]} Bf1 {[%emt 0:01:20]} 43. Kg1 {[%emt 0:00:04]} Bd3 {[%emt 0:00:50]} 44. Kg2 {[%emt 0:00:15]} Be2 {[%emt 0:05:02]} 45. Kh3 {[%emt 0:00:10]} Kf7 {[%emt 0:00:27]} 46. Kxh4 {[%emt 0:01:31]} Ke6 {[%emt 0:00:09]} 47. Rc2 {[%emt 0:04:06]} Bd3 {[%emt 0:01:37]} 48. Rc6+ {[%emt 0:01:27]} Kd5 {[%emt 0:00:30]} 49. Rxf6 {[%emt 0:01:23]} Kc4 {[%emt 0:00:47]} 50. Rf4+ {[%emt 0:01:15]} Kc3 {[%emt 0:00:02]} 51. Rf3 {[%emt 0:00:19]} Kc4 {[%emt 0:00:16]} 52. Rxd3 {[%emt 0:00:15]} Kxd3 {[%emt 0:00:20]} 53. Kxh5 {[%emt 0:00:07]} Kc4 {[%emt 0:01:07]} 54. f4 {[%emt 0:00:07]} Kxb4 {[%emt 0:00:04]} 55. f5 {[%emt 0:00:06]} 1-0

[Event "IITU Masters 2019"]
[Site "Almaty"]
[Date "2019.02.22"]
[Round "3.3"]
[White "Zhalmakhanov, Ramazan"]
[Black "Khusenkhojaev, Muhammad"]
[Result "1/2-1/2"]
[ECO "A00"]
[WhiteElo "2324"]
[BlackElo "2441"]
[Annotator "NA"]
[PlyCount "60"]
[EventDate "2019.02.20"]
[EventType "tourn"]
[EventCountry "KAZ"]
[SourceTitle "playchess.com"]
[Source "ChessBase"]
[SourceQuality "1"]
[TimeControl "5400+30"]

1. Nc3 {[%emt 0:00:00]} d5 {[%emt 0:06:08]} 2. e4 {[%emt 0:00:00]} dxe4 {[%emt 0:00:48]} 3. Nxe4 {[%emt 0:00:03]} Nd7 {[%emt 0:01:09]} 4. d4 {[%emt 0:03:17]} Ngf6 {[%emt 0:00:08]} 5. Nxf6+ {[%emt 0:01:20]} Nxf6 {[%emt 0:00:06]} 6. Nf3 {[%emt 0:00:48]} Bg4 {[%emt 0:03:19]} 7. c3 {[%emt 0:04:28]} e6 {[%emt 0:01:24]} 8. Be2 {[%emt 0:04:09]} Bd6 {[%emt 0:00:20]} 9. O-O {[%emt 0:00:38]} O-O {[%emt 0:00:14]} 10. Bg5 {[%emt 0:05:19]} h6 {[%emt 0:00:17]} 11. Bh4 {[%emt 0:03:44]} c5 {[%emt 0:04:09]} 12. dxc5 {[%emt 0:15:43]} Bxc5 {[%emt 0:00:07]} 13. Ne5 {[%emt 0:07:50]} Qxd1 {[%emt 0:03:02]} 14. Bxd1 {[%emt 0:00:11]} Bxd1 {[%emt 0:00:09]} 15. Raxd1 {[%emt 0:00:15]} g5 {[%emt 0:00:18]} 16. Bg3 {[%emt 0:00:06]} Rfd8 {[%emt 0:00:16]} 17. Rfe1 {[%emt 0:01:18]} Rac8 {[%emt 0:07:12]} 18. Kf1 {[%emt 0:04:48]} Nh5 {[%emt 0:02:56]} 19. Ke2 {[%emt 0:12:55]} f6 {[%emt 0:02:43]} 20. Nd3 {[%emt 0:02:45]} Bb6 {[%emt 0:00:50]} 21. Rd2 {[%emt 0:01:22]} Kf7 {[%emt 0:05:55]} 22. Red1 {[%emt 0:00:47]} Ke7 {[%emt 0:04:09]} 23. f3 {[%emt 0:01:42]} Nxg3+ {[%emt 0:01:00]} 24. hxg3 {[%emt 0:00:03]} h5 {[%emt 0:00:07]} 25. Rh1 {[%emt 0:01:28]} Rh8 {[%emt 0:00:25]} 26. Nf2 {[%emt 0:00:06]} Bc7 {[%emt 0:14:21]} 27. Rhd1 {[%emt 0:02:39]} Rcd8 {[%emt 0:01:00]} 28. Rxd8 {[%emt 0:00:17]} Bxd8 {[%emt 0:00:57]} 29. Ne4 {[%emt 0:00:54]} b6 {[%emt 0:01:46]} 30. f4 {[%emt 0:09:38]} gxf4 {[%emt 0:10:45]} 1/2-1/2

[Event "IITU Masters 2019"]
[Site "Almaty"]
[Date "2019.02.22"]
[Round "3.4"]
[White "Rakhimzhan, Alen"]
[Black "Igambergenov, Alibek"]
[Result "1-0"]
[ECO "A41"]
[WhiteElo "2320"]
[BlackElo "2309"]
[Annotator "NA"]
[PlyCount "53"]
[EventDate "2019.02.20"]
[EventType "tourn"]
[EventCountry "KAZ"]
[SourceTitle "playchess.com"]
[Source "ChessBase"]
[SourceQuality "1"]
[TimeControl "5400+30"]

1. d4 {[%emt 0:00:00]} d6 {[%emt 0:10:56]} 2. Nf3 {[%emt 0:01:04]} f5 {[%emt 0:00:06]} 3. g3 {[%emt 0:02:04]} Nf6 {[%emt 0:00:15]} 4. Bg2 {[%emt 0:00:09]} g6 {[%emt 0:00:04]} 5. O-O {[%emt 0:00:10]} Bg7 {[%emt 0:00:02]} 6. c4 {[%emt 0:00:13]} O-O {[%emt 0:00:05]} 7. Nc3 {[%emt 0:00:12]} Qe8 {[%emt 0:00:08]} 8. Re1 {[%emt 0:00:21]} e5 {[%emt 0:07:16]} 9. dxe5 {[%emt 0:00:25]} dxe5 {[%emt 0:00:02]} 10. e4 {[%emt 0:00:10]} fxe4 {[%emt 0:08:22]} 11. Ng5 {[%emt 0:01:12]} Bg4 {[%emt 0:06:36]} 12. Qb3 {[%emt 0:07:36]} Nc6 {[%emt 0:03:33]} 13. Be3 {[%emt 0:07:16]} Kh8 {[%emt 0:30:05]} 14. Ngxe4 {[%emt 0:08:06]} Nxe4 {[%emt 0:01:27]} 15. Nxe4 {[%emt 0:00:18]} Rb8 {[%emt 0:01:57]} 16. Bc5 {[%emt 0:04:45]} Nd4 {[%emt 0:06:54]} 17. Qe3 {[%emt 0:15:08]} Nf3+ {[%emt 0:08:18]} 18. Kh1 {[%emt 0:00:58]} Nxe1 {[%emt 0:00:26]} 19. Bxf8 {[%emt 0:00:10]} Nc2 {[%emt 0:08:19]} 20. Bxg7+ {[%emt 0:00:53]} Kxg7 {[%emt 0:00:01]} 21. Qg5 {[%emt 0:00:13]} Nxa1 {[%emt 0:00:33]} 22. Qf6+ {[%emt 0:00:42]} Kh6 {[%emt 0:00:20]} 23. Ng5 {[%emt 0:06:58]} Rd8 {[%emt 0:00:09]} 24. h3 {[%emt 0:05:07]} Rd7 {[%emt 0:01:15]} 25. hxg4 {[%emt 0:00:30]} e4 {[%emt 0:02:40]} 26. Bxe4 {[%emt 0:00:40]} Qe7 {[%emt 0:02:19]} 27. Nf7+ {[%emt 0:00:21]} 1-0

[Event "IITU Masters 2019"]
[Site "Almaty"]
[Date "2019.02.23"]
[Round "4.1"]
[White "Markov, Mikhail"]
[Black "Tologontegin, Semetey"]
[Result "0-1"]
[ECO "A30"]
[WhiteElo "2368"]
[BlackElo "2372"]
[Annotator "NA"]
[PlyCount "136"]
[EventDate "2019.02.20"]
[EventType "tourn"]
[EventCountry "KAZ"]
[SourceTitle "playchess.com"]
[Source "ChessBase"]
[SourceQuality "1"]
[TimeControl "5400+30"]

1. c4 {[%emt 0:00:00]} c5 {[%emt 0:00:00]} 2. Nf3 {[%emt 0:00:00]} Nc6 {[%emt 0:00:00]} 3. e3 {[%emt 0:00:03]} Nf6 {[%emt 0:00:13]} 4. Nc3 {[%emt 0:00:18]} g6 {[%emt 0:11:37]} 5. d4 {[%emt 0:02:28] LiveBook: 989 Games} cxd4 {[%emt 0:00:06]} 6. Nxd4 {[%emt 0:00:29]} Bg7 {[%emt 0:00:59]} 7. Be2 {[%emt 0:00:39]} O-O {[%emt 0:00:30]} 8. O-O {[%emt 0:00:04]} d6 {[%emt 0:11:31]} 9. Rb1 {[%emt 0:08:24]} Bd7 $11 {[%emt 0:17:15]} 10. b4 {[%emt 0:08:37]} Rc8 {[%emt 0:03:21]} 11. Ba3 {[%emt 0:09:39]} Nxd4 {[%emt 0:26:52]} 12. exd4 {[%emt 0:00:38]} Be6 {[%emt 0:00:06]} 13. Qb3 {[%emt 0:02:42]} Qc7 {[%emt 0:04:11]} 14. d5 {[%emt 0:02:33]} Bf5 {[%emt 0:00:15]} 15. Rbc1 {[%emt 0:06:43]} Bh6 {[%emt 0:04:08]} 16. Rcd1 {[%emt 0:00:21]} Bg4 {[%emt 0:00:17]} 17. Nb5 {[%emt 0:01:55]} Qb8 {[%emt 0:00:07]} 18. Bxg4 {[%emt 0:06:56]} Nxg4 {[%emt 0:00:08]} 19. Rfe1 {[%emt 0:03:36]} Rfe8 {[%emt 0:05:48]} 20. Nd4 {[%emt 0:06:23]} Bg7 {[%emt 0:00:32]} 21. h3 {[%emt 0:00:54]} Nf6 {[%emt 0:02:59]} 22. c5 {[%emt 0:02:52]} a6 {[%emt 0:00:51]} 23. Re2 {[%emt 0:03:49]} a5 {[%emt 0:04:00]} 24. cxd6 {[%emt 0:03:20]} Qxd6 {[%emt 0:00:53]} 25. Nb5 {[%emt 0:00:36]} Qa6 {[%emt 0:00:10]} 26. bxa5 {[%emt 0:00:10]} Bf8 {[%emt 0:00:12]} 27. Rde1 {[%emt 0:07:48]} Red8 {[%emt 0:00:15]} 28. Bxe7 {[%emt 0:01:48]} Rxd5 {[%emt 0:00:17]} 29. Nc3 {[%emt 0:02:40]} Rd3 {[%emt 0:04:28]} 30. Bxf6 {[%emt 0:00:23]} Qxf6 {[%emt 0:00:01]} 31. Ne4 {[%emt 0:01:09]} Qa6 {[%emt 0:00:05]} 32. Qb1 {[%emt 0:05:58]} Ra3 {[%emt 0:00:52]} 33. Qb2 {[%emt 0:00:42]} Rc6 {[%emt 0:01:27]} 34. Rd1 {[%emt 0:00:10]} Re6 {[%emt 0:00:58]} 35. Rd8 {[%emt 0:00:34]} Ra4 {[%emt 0:00:49]} 36. f3 {[%emt 0:03:52]} Rxa5 {[%emt 0:00:25]} 37. Kh1 {[%emt 0:01:50]} Rb5 {[%emt 0:00:13]} 38. Qd2 {[%emt 0:01:26]} Qb6 {[%emt 0:01:26]} 39. Re1 {[%emt 0:01:31]} Rb2 {[%emt 0:00:27]} 40. Qd5 {[%emt 0:01:02]} Kg7 {[%emt 0:00:13]} 41. Rd7 {[%emt 0:00:30]} Be7 {[%emt 0:00:14]} 42. a4 {[%emt 0:00:47]} Qb4 {[%emt 0:00:29]} 43. Rd1 {[%emt 0:00:19]} Qxa4 44. Nc5 {[%emt 0:02:08]} Bxc5 {[%emt 0:00:35]} 45. Qxc5 {[%emt 0:00:01]} Qf4 {[%emt 0:01:27]} 46. Rd8 {[%emt 0:00:52]} Rxg2 {[%emt 0:00:42]} 47. Qc3+ {[%emt 0:01:50]} Kh6 {[%emt 0:00:03]} 48. Kxg2 {[%emt 0:00:03]} Re2+ {[%emt 0:00:03]} 49. Kf1 {[%emt 0:00:03]} Qh2 {[%emt 0:00:54]} 50. Qd2+ {[%emt 0:01:35]} Rxd2 {[%emt 0:00:04]} 51. R8xd2 {[%emt 0:00:09]} Qxh3+ {[%emt 0:00:08]} 52. Kf2 {[%emt 0:00:02]} Qh2+ {[%emt 0:00:13]} 53. Kf1 {[%emt 0:00:07]} Qg3 {[%emt 0:00:22]} 54. Rd3 {[%emt 0:00:05]} Kg7 {[%emt 0:00:43]} 55. Rb1 {[%emt 0:00:23]} h5 {[%emt 0:00:24]} 56. Rxb7 {[%emt 0:00:34]} h4 {[%emt 0:00:17]} 57. Ke2 {[%emt 0:00:08]} Qg2+ {[%emt 0:01:12]} 58. Ke3 {[%emt 0:00:04]} Qg1+ {[%emt 0:00:22]} 59. Ke2 {[%emt 0:00:04]} h3 {[%emt 0:00:56]} 60. Rdd7 {[%emt 0:01:17]} Qh2+ {[%emt 0:00:21]} 61. Ke3 {[%emt 0:00:16]} Qe5+ {[%emt 0:00:46]} 62. Kf2 {[%emt 0:00:01]} Qh2+ {[%emt 0:00:22]} 63. Ke3 {[%emt 0:00:00]} Qg1+ {[%emt 0:00:14]} 64. Kf4 {[%emt 0:00:07]} g5+ {[%emt 0:01:36]} 65. Kf5 {[%emt 0:00:23]} Qc5+ {[%emt 0:00:22]} 66. Kg4 {[%emt 0:00:01]} h2 {[%emt 0:00:33]} 67. f4 {[%emt 0:00:26]} h1=Q {[%emt 0:00:14]} 68. Rxf7+ {[%emt 0:00:04]} Kg8 {[%emt 0:00:08]} 0-1

[Event "IITU Masters 2019"]
[Site "Almaty"]
[Date "2019.02.23"]
[Round "4.2"]
[White "Igambergenov, Alibek"]
[Black "Zubarev, Alexander"]
[Result "1/2-1/2"]
[ECO "E70"]
[WhiteElo "2309"]
[BlackElo "2494"]
[Annotator "ChessBase"]
[PlyCount "105"]
[EventDate "2019.02.20"]
[EventType "tourn"]
[EventCountry "KAZ"]
[SourceTitle "playchess.com"]
[Source "ChessBase"]
[SourceQuality "1"]
[TimeControl "5400+30"]

1. d4 {[%emt 0:00:00]} g6 {[%emt 0:14:42]} 2. c4 {[%emt 0:00:00]} Bg7 {[%emt 0:00:06]} 3. Nc3 {[%emt 0:00:00]} Nf6 {[%emt 0:02:59]} 4. e4 {[%emt 0:00:09]} O-O {[%emt 0:00:15]} 5. h3 {[%emt 0:02:33]} d6 {[%emt 0:03:41]} 6. Bg5 {[%emt 0:02:47]} a6 {[%emt 0:04:09]} 7. Nf3 {[%emt 0:10:55]} c5 {[%emt 0:00:39]} 8. dxc5 {[%emt 0:00:28]} dxc5 {[%emt 0:01:52]} 9. Qxd8 {[%emt 0:04:28]} Rxd8 {[%emt 0:00:05]} 10. e5 {[%emt 0:00:08]} Nfd7 {[%emt 0:01:22]} 11. O-O-O {[%emt 0:02:05]} h6 {[%emt 0:06:23]} 12. Bxe7 {[%emt 0:04:26]} Re8 {[%emt 0:00:08]} 13. Nd5 {[%emt 0:00:16]} Nc6 {[%emt 0:00:53]} 14. Bd6 {[%emt 0:00:36]} Ndxe5 {[%emt 0:11:28]} 15. Nxe5 {[%emt 0:02:16]} Nxe5 {[%emt 0:02:25]} 16. Nc7 {[%emt 0:03:01]} Be6 {[%emt 0:00:34]} 17. Nxa8 {[%emt 0:13:26]} Rxa8 {[%emt 0:00:06]} 18. Bxc5 {[%emt 0:00:14]} Rc8 {[%emt 0:05:22]} 19. Bd4 {[%emt 0:01:03]} b5 {[%emt 0:02:24]} 20. Be2 {[%emt 0:12:07]} h5 {[%emt 0:02:29]} 21. Kb1 {[%emt 0:04:05]} bxc4 {[%emt 0:00:58]} 22. Ka1 {[%emt 0:01:08]} a5 {[%emt 0:01:52]} 23. f4 {[%emt 0:02:24]} Nc6 {[%emt 0:00:28]} 24. Bxg7 {[%emt 0:00:05]} Kxg7 {[%emt 0:00:06]} 25. Rd2 {[%emt 0:00:15]} Nb4 {[%emt 0:01:33]} 26. a3 {[%emt 0:06:45]} Nd5 {[%emt 0:01:54]} 27. f5 {[%emt 0:01:31]} gxf5 {[%emt 0:00:13]} 28. Rc1 {[%emt 0:00:46]} Nf4 {[%emt 0:04:36]} 29. Bf1 {[%emt 0:00:16]} Ng6 {[%emt 0:02:51]} 30. Rdc2 {[%emt 0:04:40]} Ne5 {[%emt 0:02:31]} 31. b3 {[%emt 0:00:07]} Nc6 {[%emt 0:00:38]} 32. bxc4 {[%emt 0:04:49]} Nd4 {[%emt 0:00:32]} 33. Rc3 {[%emt 0:00:06]} a4 {[%emt 0:00:59]} 34. Rd1 {[%emt 0:00:29]} Nb3+ {[%emt 0:00:14]} 35. Kb2 {[%emt 0:01:23]} Nc5 {[%emt 0:00:43]} 36. Rf3 {[%emt 0:01:03]} Kf6 {[%emt 0:01:38]} 37. Re1 {[%emt 0:06:23]} h4 {[%emt 0:01:30]} 38. Kc3 {[%emt 0:02:14]} Kg5 {[%emt 0:02:48]} 39. Re5 {[%emt 0:03:03]} Ne4+ {[%emt 0:04:29]} 40. Kc2 {[%emt 0:00:12]} Nd6 {[%emt 0:01:50]} 41. Ra5 {[%emt 0:01:47]} Nxc4 {[%emt 0:01:05]} 42. Bxc4 {[%emt 0:00:06]} Rxc4+ {[%emt 0:00:14]} 43. Kd3 {[%emt 0:00:43]} Re4 {[%emt 0:02:45]} 44. Rf2 {[%emt 0:03:23]} Bc4+ {[%emt 0:00:38]} 45. Kc3 {[%emt 0:00:05]} Be6 {[%emt 0:00:10]} 46. Kd3 {[%emt 0:00:19]} Bc4+ {[%emt 0:00:06]} 47. Kd2 {[%emt 0:02:32]} Be6 {[%emt 0:00:08]} 48. Rf3 {[%emt 0:00:12]} Rd4+ {[%emt 0:00:51]} 49. Ke3 {[%emt 0:00:37]} Rc4 {[%emt 0:01:07]} 50. Kf2 {[%emt 0:01:07]} Rd4 {[%emt 0:01:55]} 51. Ke3 {[%emt 0:00:48]} Rc4 {[%emt 0:00:19]} 52. Kf2 {[%emt 0:00:03]} Rd4 {[%emt 0:00:09]} 53. Ke3 {[%emt 0:01:03]} 1/2-1/2

[Event "IITU Masters 2019"]
[Site "Almaty"]
[Date "2019.02.23"]
[Round "4.4"]
[White "Daurimbetov, A."]
[Black "Zhalmakhanov, Ramazan"]
[Result "0-1"]
[ECO "B53"]
[WhiteElo "2287"]
[BlackElo "2324"]
[Annotator "NA"]
[PlyCount "100"]
[EventDate "2019.02.20"]
[EventType "tourn"]
[EventCountry "KAZ"]
[SourceTitle "playchess.com"]
[Source "ChessBase"]
[SourceQuality "1"]
[TimeControl "5400+30"]

1. e4 {[%emt 0:07:24]} c5 {[%emt 0:00:00]} 2. Nf3 {[%emt 0:00:03]} d6 {[%emt 0:00:00]} 3. d4 {[%emt 0:00:41]} cxd4 {[%emt 0:00:06]} 4. Qxd4 {[%emt 0:00:47]} a6 {[%emt 0:00:09]} 5. c4 {[%emt 0:00:16]} Nc6 {[%emt 0:00:07]} 6. Qd3 {[%emt 0:00:13]} g6 {[%emt 0:00:14]} 7. Nc3 {[%emt 0:00:42]} Bg7 {[%emt 0:00:17]} 8. Be2 {[%emt 0:00:21]} Bg4 {[%emt 0:04:11]} 9. O-O {[%emt 0:05:50]} Rc8 {[%emt 0:08:56]} 10. Nd5 {[%emt 0:04:25]} e6 {[%emt 0:07:46]} 11. Ne3 {[%emt 0:05:45]} Bxf3 {[%emt 0:01:49]} 12. Bxf3 {[%emt 0:00:01]} Nge7 {[%emt 0:02:06]} 13. g3 {[%emt 0:04:41]} Ne5 $15 {[%emt 0:06:10]} 14. Qd1 {[%emt 0:03:05]} Nxc4 {[%emt 0:04:32]} 15. Nxc4 {[%emt 0:00:18]} Rxc4 {[%emt 0:00:02]} 16. Qb3 {[%emt 0:00:23]} Qc7 {[%emt 0:01:24]} 17. Bf4 {[%emt 0:02:45]} Rc6 {[%emt 0:01:48]} 18. Rad1 {[%emt 0:04:12]} O-O {[%emt 0:01:48]} 19. Rd2 {[%emt 0:00:07]} Rd8 {[%emt 0:04:16]} 20. Rfd1 {[%emt 0:00:58]} Nc8 {[%emt 0:07:20]} 21. h4 {[%emt 0:02:52]} Nb6 {[%emt 0:13:22]} 22. Be2 {[%emt 0:08:42]} h6 {[%emt 0:04:06]} 23. Qe3 {[%emt 0:09:46]} Kh7 {[%emt 0:01:23]} 24. Qf3 {[%emt 0:00:03]} Qe7 {[%emt 0:06:02]} 25. Qb3 {[%emt 0:05:35]} Rd7 {[%emt 0:02:39]} 26. Kg2 {[%emt 0:02:15]} Qd8 {[%emt 0:00:46]} 27. h5 {[%emt 0:04:24]} g5 {[%emt 0:00:51]} 28. Be3 {[%emt 0:00:01]} d5 {[%emt 0:00:47]} 29. exd5 {[%emt 0:01:11]} Nxd5 {[%emt 0:00:13]} 30. Kg1 {[%emt 0:00:25]} Rcd6 {[%emt 0:07:59]} 31. Bc5 {[%emt 0:02:16]} Rc6 {[%emt 0:00:07]} 32. Be3 {[%emt 0:03:08]} Rcd6 {[%emt 0:03:11]} 33. Qa3 {[%emt 0:00:43]} Kg8 {[%emt 0:01:59]} 34. Bc5 {[%emt 0:07:35]} Rc6 {[%emt 0:00:02]} 35. Bf3 {[%emt 0:00:50]} b6 {[%emt 0:02:46]} 36. Bd4 {[%emt 0:01:47]} b5 {[%emt 0:01:49]} 37. Bxg7 {[%emt 0:02:05]} Kxg7 {[%emt 0:00:01]} 38. Be4 {[%emt 0:02:08]} Rcd6 {[%emt 0:01:59]} 39. Rd4 {[%emt 0:01:31]} b4 {[%emt 0:01:03]} 40. Qb3 {[%emt 0:03:16]} Nf6 {[%emt 0:00:49]} 41. Rxd6 {[%emt 0:00:20]} Rxd6 {[%emt 0:00:06]} 42. Rxd6 {[%emt 0:00:07]} Qxd6 {[%emt 0:00:01]} 43. Bf3 {[%emt 0:00:11]} Qd4 {[%emt 0:01:31]} 44. a4 {[%emt 0:03:52]} a5 {[%emt 0:01:13]} 45. Qc2 {[%emt 0:01:06]} g4 {[%emt 0:00:49]} 46. Be2 {[%emt 0:00:01]} Qe5 {[%emt 0:01:07]} 47. b3 {[%emt 0:00:44]} Qxh5 {[%emt 0:00:54]} 48. Qc7 {[%emt 0:00:23]} Qf5 {[%emt 0:00:31]} 49. Bc4 {[%emt 0:01:01]} Ne4 {[%emt 0:00:46]} 50. Qa7 {[%emt 0:00:37]} Qc5 {[%emt 0:00:10]} 0-1

[Event "IITU Masters 2019"]
[Site "Almaty"]
[Date "2019.02.25"]
[Round "6.1"]
[White "Markov, Mikhail"]
[Black "Igambergenov, Alibek"]
[Result "1-0"]
[ECO "A45"]
[WhiteElo "2368"]
[BlackElo "2309"]
[Annotator "NA"]
[PlyCount "81"]
[EventDate "2019.02.20"]
[EventType "tourn"]
[EventCountry "KAZ"]
[SourceTitle "playchess.com"]
[Source "ChessBase"]
[SourceQuality "1"]
[TimeControl "5400+30"]

1. d4 {[%emt 0:02:31]} Nf6 {[%emt 0:00:00]} 2. Bf4 {[%emt 0:00:05]} c5 {[%emt 0:01:22]} 3. dxc5 {[%emt 0:01:56]} Na6 {[%emt 0:01:02]} 4. Qd4 {[%emt 0:05:01]} Qa5+ {[%emt 0:07:25]} 5. Nc3 {[%emt 0:02:37]} Qxc5 {[%emt 0:07:07]} 6. Qxc5 {[%emt 0:01:18]} Nxc5 {[%emt 0:00:05]} 7. f3 {[%emt 0:02:19]} g6 {[%emt 0:03:19]} 8. e4 {[%emt 0:00:58]} Bg7 {[%emt 0:00:28]} 9. Nb5 {[%emt 0:03:05]} Ne6 {[%emt 0:01:53]} 10. Be3 {[%emt 0:00:07]} a6 {[%emt 0:00:31]} 11. Nc3 {[%emt 0:00:03]} b5 {[%emt 0:03:51]} 12. O-O-O {[%emt 0:00:19]} Bb7 {[%emt 0:00:43]} 13. a4 {[%emt 0:00:40]} b4 {[%emt 0:00:41]} 14. Nd5 {[%emt 0:00:06]} Nxd5 {[%emt 0:07:20]} 15. exd5 {[%emt 0:00:43]} Nc7 {[%emt 0:00:03]} 16. Bc4 {[%emt 0:03:17]} e6 {[%emt 0:05:39]} 17. dxe6 {[%emt 0:02:23]} dxe6 {[%emt 0:00:39]} 18. Ne2 {[%emt 0:10:56]} Nd5 {[%emt 0:03:11]} 19. Bc5 {[%emt 0:02:35]} Bh6+ {[%emt 0:01:32]} 20. Kb1 {[%emt 0:00:48]} Ne3 {[%emt 0:00:08]} 21. Bxe3 {[%emt 0:02:20]} Bxe3 {[%emt 0:00:04]} 22. Rd3 {[%emt 0:00:18]} Bb6 {[%emt 0:20:29]} 23. Rhd1 {[%emt 0:00:42]} Rd8 {[%emt 0:00:20]} 24. Nd4 {[%emt 0:01:33]} Ke7 {[%emt 0:01:06]} 25. Bxa6 {[%emt 0:00:55]} Rxd4 {[%emt 0:11:51]} 26. Bxb7 {[%emt 0:01:14]} Rhd8 {[%emt 0:00:03]} 27. Ba6 {[%emt 0:02:08]} Rxd3 {[%emt 0:02:48]} 28. Bxd3 {[%emt 0:00:06]} Rd4 {[%emt 0:00:05]} 29. Ka2 {[%emt 0:00:26]} Kd6 {[%emt 0:00:10]} 30. Kb3 {[%emt 0:00:15]} Kc5 {[%emt 0:00:13]} 31. Re1 {[%emt 0:04:03]} Bc7 {[%emt 0:00:05]} 32. h3 {[%emt 0:00:05]} h5 {[%emt 0:01:57]} 33. Re2 {[%emt 0:00:28]} h4 {[%emt 0:00:30]} 34. Bb5 {[%emt 0:00:14]} g5 {[%emt 0:03:16]} 35. Be8 {[%emt 0:00:16]} Rf4 {[%emt 0:00:04]} 36. Rd2 {[%emt 0:01:06]} f6 {[%emt 0:02:13]} 37. Rd7 {[%emt 0:00:21]} Bb6 {[%emt 0:00:50]} 38. Rb7 {[%emt 0:02:45]} Rd4 {[%emt 0:02:46]} 39. a5 {[%emt 0:00:23]} Bd8 {[%emt 0:00:03]} 40. Rb5+ {[%emt 0:00:53]} Kd6 {[%emt 0:00:01]} 41. a6 {[%emt 0:00:21]} 1-0

[Event "IITU Masters 2019"]
[Site "Almaty"]
[Date "2019.02.25"]
[Round "6.4"]
[White "Mezentsev, Ivan"]
[Black "Rakhimzhan, Alen"]
[Result "1/2-1/2"]
[ECO "A05"]
[WhiteElo "2298"]
[BlackElo "2320"]
[Annotator "NA"]
[PlyCount "65"]
[EventDate "2019.02.20"]
[EventType "tourn"]
[EventCountry "KAZ"]
[SourceTitle "playchess.com"]
[Source "ChessBase"]
[SourceQuality "1"]
[TimeControl "5400+30"]

1. Nf3 {[%emt 0:04:20]} Nf6 {[%emt 0:00:00]} 2. c4 {[%emt 0:00:48]} e6 {[%emt 0:00:00]} 3. b3 {[%emt 0:01:17]} d5 {[%emt 0:01:21]} 4. Bb2 {[%emt 0:03:08]} b6 {[%emt 0:04:08]} 5. g3 {[%emt 0:03:48]} dxc4 {[%emt 0:01:19]} 6. bxc4 {[%emt 0:00:38]} c5 {[%emt 0:00:16]} 7. Bg2 {[%emt 0:00:52]} Bb7 {[%emt 0:00:10]} 8. d3 {[%emt 0:02:02]} Be7 {[%emt 0:00:13]} 9. O-O {[%emt 0:04:28]} O-O {[%emt 0:00:11]} 10. Nbd2 {[%emt 0:04:27]} Nc6 {[%emt 0:00:24]} 11. Ne5 {[%emt 0:05:33]} Qc8 {[%emt 0:02:19]} 12. Nxc6 {[%emt 0:05:33]} Bxc6 {[%emt 0:03:21]} 13. e4 {[%emt 0:05:07]} b5 {[%emt 0:19:41]} 14. e5 {[%emt 0:13:38]} Nd7 {[%emt 0:02:04]} 15. Ne4 {[%emt 0:03:46]} bxc4 {[%emt 0:20:07]} 16. dxc4 {[%emt 0:01:10]} f5 {[%emt 0:01:57]} 17. exf6 {[%emt 0:16:36]} Nxf6 {[%emt 0:00:32]} 18. Bxf6 {[%emt 0:02:31]} Bxf6 {[%emt 0:01:07]} 19. Nxf6+ {[%emt 0:00:24]} Rxf6 {[%emt 0:00:37]} 20. Qd3 {[%emt 0:02:25]} Bxg2 {[%emt 0:02:19]} 21. Kxg2 {[%emt 0:00:02]} Qc6+ {[%emt 0:00:14]} 22. f3 {[%emt 0:00:15]} Raf8 {[%emt 0:00:43]} 23. Rae1 {[%emt 0:00:41]} h6 {[%emt 0:01:46]} 24. Rf2 {[%emt 0:01:59]} Qc7 {[%emt 0:03:40]} 25. Rd1 {[%emt 0:04:12]} Qc6 {[%emt 0:01:12]} 26. Qe3 {[%emt 0:01:16]} Qa4 {[%emt 0:00:34]} 27. Qe2 {[%emt 0:02:05]} Qc6 {[%emt 0:00:38]} 28. Rd3 {[%emt 0:00:41]} Rf5 {[%emt 0:07:01]} 29. Re3 {[%emt 0:00:14]} R5f6 {[%emt 0:00:33]} 30. Rd3 {[%emt 0:01:49]} Rf5 {[%emt 0:00:11]} 31. Re3 {[%emt 0:00:17]} R5f6 {[%emt 0:00:08]} 32. Rd3 {[%emt 0:00:36]} Rf5 {[%emt 0:00:14]} 33. Re3 {[%emt 0:00:42]} 1/2-1/2